fUST/lending_fUST_20250202
["ID","MTS","AMOUNT","RATE_DAILY","PERIOD"]
[351247221,1738476452513,-507.28356888,0.00016712,2]
[351247222,1738476452536,-500.0,0.00016712,2]
[351247223,1738476452559,-406.72618874,0.00016712,2]
[351247224,1738476452583,-500.0,0.00016712,2]
[351247225,1738476452605,-500.0,0.00016712,2]
[351247226,1738476452627,-500.0,0.00016712,2]
[351247227,1738476452648,-500.0,0.00016712,2]
[351247228,1738476452673,-500.0,0.00016712,2]
[351247229,1738476452699,-1267.09,0.00016712,2]
[351247230,1738476452722,-500.0,0.00016712,2]
[351247231,1738476452745,-500.0,0.00016712,2]
[351247232,1738476452769,-410.47077052,0.00016712,2]
[351247233,1738476452793,-500.0,0.00016712,2]
[351247234,1738476452816,-500.0,0.00016712,2]
[351247235,1738476452839,-500.0,0.00016712,2]
[351247236,1738476452862,-506.55152694,0.00016712,2]
[351247237,1738476452885,-500.0,0.00016712,2]
[351247238,1738476452909,-500.0,0.00016712,2]
[351247239,1738476452934,-500.0,0.00016712,2]
[351247240,1738476452958,-500.0,0.00016712,2]
[351247241,1738476452983,-916.48,0.00016712,2]
[351247242,1738476453006,-500.0,0.00016712,2]
[351247243,1738476453034,-500.0,0.00016712,2]
[351247244,1738476453060,-500.0,0.00016712,2]
[351247245,1738476453088,-2208.86,0.00016712,2]
[351247246,1738476453114,-500.0,0.00016712,2]
[351247247,1738476453139,-500.0,0.00016712,2]
[351247248,1738476453164,-1066.68,0.00016712,2]
[351247249,1738476453190,-977.97,0.00016712,2]
[351247250,1738476453215,-519.67,0.00016712,2]
[351247251,1738476453240,-500.0,0.00016712,2]
[351247252,1738476453263,-500.0,0.00016712,2]
[351247253,1738476453287,-500.0,0.00016712,2]
[351247254,1738476453312,-688.79,0.00016712,2]
[351247255,1738476453336,-500.0,0.00016712,2]
[351247256,1738476453363,-1622.28,0.00016712,2]
[351247257,1738476453388,-500.0,0.00016712,2]
[351247258,1738476453411,-500.0,0.00016712,2]
[351247259,1738476453436,-502.02,0.00016712,2]
[351247260,1738476453462,-500.0,0.00016712,2]
[351247261,1738476453503,-500.0,0.00016712,2]
[351247262,1738476453530,-500.0,0.00016712,2]
[351247263,1738476453558,-567.21,0.00016712,2]
[351247264,1738476453584,-1103.17,0.00016712,2]
[351247265,1738476453610,-10527.23,0.00016712,2]
[351247266,1738476453634,-521.99,0.00016712,2]
[351247267,1738476453659,-500.0,0.00016712,2]
[351247268,1738476453687,-500.0,0.00016712,2]
[351247269,1738476453712,-288.47710915,0.00016784,2]
[351247270,1738476453736,-500.0,0.00016813,2]
[351247271,1738476453764,-500.0,0.00016813,2]
[351247272,1738476453787,-500.0,0.00016813,2]
[351247273,1738476453809,-500.0,0.00016813,2]
[351247274,1738476453832,-500.0,0.00016813,2]
[351247275,1738476453855,-500.0,0.00016813,2]
[351247276,1738476453878,-500.0,0.00016813,2]
[351247277,1738476453900,-500.0,0.00016813,2]
[351247278,1738476453923,-500.0,0.00016813,2]
[351247279,1738476453946,-500.0,0.00016813,2]
[351247280,1738476453969,-500.0,0.00016813,2]
[351247281,1738476453991,-500.0,0.00016813,2]
[351247282,1738476454021,-2057.19,0.00016813,2]
[351247283,1738476454050,-298.25359222,0.00016813,2]
[351247284,1738476454220,-500.0,0.00016813,2]
[351247285,1738476454244,-500.0,0.00016813,2]
[351247286,1738476454268,-500.0,0.00016813,2]
[351247287,1738476454291,-500.0,0.00016813,2]
[351247288,1738476454317,-3089.73,0.00016813,2]
[351247289,1738476454340,-500.0,0.00016813,2]
[351247290,1738476454363,-540.88,0.00016813,2]
[351247291,1738476454387,-500.0,0.00016848,2]
[351247292,1738476454414,-500.0,0.00016849,2]
[351247293,1738476454439,-500.0,0.00016849,2]
[351247294,1738476454462,-500.0,0.00016849,2]
[351247295,1738476454486,-500.0,0.00016849,2]
[351247296,1738476454509,-500.0,0.00016849,2]
[351247297,1738476454532,-500.0,0.00016849,2]
[351247298,1738476454554,-500.0,0.00016849,2]
[351247299,1738476454576,-472.39813611,0.00016849,2]
[351247300,1738476454598,-500.0,0.00016849,2]
[351247301,1738476454620,-500.0,0.00016849,2]
[351247302,1738476454642,-500.0,0.00016849,2]
[351247303,1738476454664,-500.0,0.00016849,2]
[351247304,1738476454687,-500.0,0.00016849,2]
[351247305,1738476454709,-500.0,0.00016849,2]
[351247306,1738476454735,-563.33282582,0.00016849,2]
[351247307,1738476454758,-500.0,0.00016849,2]
[351247308,1738476454782,-1267.09,0.00016849,2]
[351247309,1738476454802,-500.0,0.00016849,2]
[351247310,1738476454824,-500.0,0.00016849,2]
[351247311,1738476454846,-500.0,0.00016849,2]
[351247312,1738476454869,-500.0,0.00016849,2]
[351247313,1738476454890,-500.0,0.00016849,2]
[351247314,1738476454912,-500.0,0.00016849,2]
[351247315,1738476454934,-551.19,0.00016849,2]
[351247316,1738476454956,-500.0,0.00016849,2]
[351247317,1738476454979,-916.48,0.00016849,2]
[351247318,1738476455002,-613.38873494,0.00016849,2]
[351247319,1738476455027,-500.0,0.00016849,2]
[351247320,1738476455050,-500.0,0.00016849,2]
[351247321,1738476455075,-46.23500388,0.00016849,2]
[351247322,1738476455420,-237.61177019,0.00016438,2]
[351247323,1738476455451,-2162.62499612,0.00016849,2]
[351247324,1738476455475,-500.0,0.00016849,2]
[351247325,1738476455499,-500.0,0.00016849,2]
[351247326,1738476455524,-1066.68,0.00016849,2]
[351247327,1738476455549,-977.97,0.00016849,2]
[351247328,1738476455574,-519.67,0.00016849,2]
[351247329,1738476455598,-500.0,0.00016849,2]
[351247330,1738476455620,-500.0,0.00016849,2]
[351247331,1738476455643,-500.0,0.00016849,2]
[351247332,1738476455668,-688.79,0.00016849,2]
[351247333,1738476455695,-500.0,0.00016849,2]
[351247334,1738476455719,-908.76545675,0.00016849,2]
[351247335,1738476455819,-713.51454325,0.00016849,2]
[351247336,1738476455841,-378.27194955,0.00016849,2]
[351247337,1738476558115,-300.0,0.00015724,2]
[351247338,1738476558143,-24333.90029778,0.00015725,2]
[351247395,1738476632590,-566.09970222,0.00015725,2]
[351247397,1738476632599,-646.29269418,0.00016337,2]
[351247399,1738476632609,-300.0,0.00016437,2]
[351247401,1738476632618,-500.0,0.00016438,2]
[351247403,1738476632627,-1800.04,0.00016438,2]
[351247405,1738476632637,-500.0,0.00016438,2]
[351247407,1738476632646,-500.0,0.00016438,2]
[351247409,1738476632655,-500.0,0.00016438,2]
[351247411,1738476632665,-1055.91,0.00016438,2]
[351247414,1738476632674,-500.0,0.00016438,2]
[351247417,1738476632683,-500.0,0.00016438,2]
[351247419,1738476632692,-500.0,0.00016438,2]
[351247421,1738476632701,-500.0,0.00016438,2]
[351247423,1738476632710,-500.0,0.00016438,2]
[351247426,1738476632721,-500.0,0.00016438,2]
[351247428,1738476632730,-500.0,0.00016438,2]
[351247430,1738476632739,-500.0,0.00016438,2]
[351247432,1738476632749,-500.0,0.00016438,2]
[351247434,1738476632759,-570.6301173,0.00016438,2]
[351247437,1738476632779,-1270.0898827,0.00016438,2]
[351247439,1738476632788,-325.36,0.00016438,2]
[351247441,1738476632798,-500.0,0.00016438,2]
[351247443,1738476632807,-211.5501173,0.00016438,2]
[351247445,1738476632819,-256.55234567,0.00016438,2]
[351247591,1738476638374,-31.89753703,0.00016438,2]
[351247592,1738476638384,-814.98,0.00016438,2]
[351247593,1738476638394,-318.25729526,0.00016438,2]
[351247594,1738476638403,-763.73,0.00016438,2]
[351247595,1738476638413,-500.0,0.00016438,2]
[351247597,1738476638423,-888.9,0.00016438,2]
[351247599,1738476638433,-500.0,0.00016438,2]
[351247601,1738476638442,-500.0,0.00016438,2]
[351247603,1738476638451,-500.0,0.00016438,2]
[351247605,1738476638460,-500.0,0.00016438,2]
[351247607,1738476638470,-418.67908754,0.00016438,2]
[351247609,1738476638480,-2703.51,0.00016438,2]
[351247611,1738476638490,-500.0,0.00016438,2]
[351247613,1738476638499,-500.0,0.00016438,2]
[351247615,1738476638509,-9211.32,0.00016438,2]
[351247618,1738476638518,-574.0,0.00016438,2]
[351247620,1738476638527,-500.0,0.00016438,2]
[351247622,1738476638536,-500.0,0.00016438,2]
[351247624,1738476638545,-500.0,0.00016438,2]
[351247626,1738476638555,-1351.9,0.00016438,2]
[351247628,1738476638565,-500.0,0.00016438,2]
[351247630,1738476638574,-500.0,0.00016539,2]
[351247631,1738476638583,-546.17,0.00016575,2]
[351247633,1738476638593,-1800.04,0.00016575,2]
[351247635,1738476638602,-500.0,0.00016575,2]
[351247637,1738476638611,-503.49773745,0.00016575,2]
[351247639,1738476638620,-500.0,0.00016575,2]
[351247641,1738476638629,-1055.91,0.00016575,2]
[351247643,1738476638639,-500.0,0.00016575,2]
[351247645,1738476638648,-500.0,0.00016575,2]
[351247647,1738476638657,-500.0,0.00016575,2]
[351247649,1738476638666,-500.0,0.00016575,2]
[351247651,1738476638676,-500.0,0.00016575,2]
[351247653,1738476638685,-500.0,0.00016575,2]
[351247655,1738476638695,-500.0,0.00016575,2]
[351247658,1738476638705,-1840.72,0.00016575,2]
[351247660,1738476638714,-500.0,0.00016575,2]
[351247662,1738476638723,-500.0,0.00016575,2]
[351247664,1738476638732,-814.98,0.00016575,2]
[351247666,1738476638741,-763.73,0.00016575,2]
[351247668,1738476638750,-500.0,0.00016575,2]
[351247670,1738476638760,-888.9,0.00016575,2]
[351247672,1738476638769,-500.0,0.00016575,2]
[351247673,1738476638778,-500.0,0.00016575,2]
[351247676,1738476638787,-500.0,0.00016575,2]
[351247678,1738476638796,-500.0,0.00016575,2]
[351247679,1738476638806,-2703.51,0.00016575,2]
[351247682,1738476638815,-500.0,0.00016575,2]
[351247683,1738476638824,-500.0,0.00016575,2]
[351247686,1738476638833,-9211.32,0.00016575,2]
[351247688,1738476638843,-574.0,0.00016575,2]
[351247690,1738476638852,-500.0,0.00016575,2]
[351247692,1738476638861,-500.0,0.00016575,2]
[351247694,1738476638870,-500.0,0.00016575,2]
[351247696,1738476638879,-1351.9,0.00016575,2]
[351247698,1738476638888,-26206.13003164,0.00016612,2]
[351247700,1738476638897,-500.0,0.00016676,2]
[351247702,1738476638907,-1800.04,0.00016712,2]
[351247704,1738476638916,-500.0,0.00016712,2]
[351247705,1738476638925,-500.0,0.00016712,2]
[351247707,1738476638934,-1055.91,0.00016712,2]
[351247709,1738476638946,-500.0,0.00016712,2]
[351247712,1738476638955,-500.0,0.00016712,2]
[351247713,1738476638964,-500.0,0.00016712,2]
[351247715,1738476638973,-497.2556,0.00016712,2]
[351247718,1738476638983,-500.0,0.00016712,2]
[351247719,1738476638992,-500.0,0.00016712,2]
[351247721,1738476639001,-500.0,0.00016712,2]
[351247724,1738476639011,-1840.72,0.00016712,2]
[351247726,1738476639020,-500.0,0.00016712,2]
[351247727,1738476639030,-500.0,0.00016712,2]
[351247730,1738476639039,-814.98,0.00016712,2]
[351247732,1738476639048,-763.73,0.00016712,2]
[351247734,1738476639058,-888.9,0.00016712,2]
[351247736,1738476639067,-500.0,0.00016712,2]
[351247738,1738476639076,-500.0,0.00016712,2]
[351247740,1738476639086,-500.0,0.00016712,2]
[351247742,1738476639098,-500.0,0.00016712,2]
[351247744,1738476639108,-2703.51,0.00016712,2]
[351247746,1738476639117,-500.0,0.00016712,2]
[351247748,1738476639128,-500.0,0.00016712,2]
[351247750,1738476639138,-9211.32,0.00016712,2]
[351247752,1738476639147,-574.0,0.00016712,2]
[351247754,1738476639156,-500.0,0.00016712,2]
[351247756,1738476639166,-500.0,0.00016712,2]
[351247758,1738476639176,-500.0,0.00016712,2]
[351247760,1738476639186,-1351.9,0.00016712,2]
[351247762,1738476639195,-500.0,0.00016813,2]
[351247764,1738476639204,-154.45376609,0.00016849,2]
[351247766,1738476639214,-493.46,0.00016849,2]
[351247768,1738476639224,-500.0,0.00016849,2]
[351247770,1738476639234,-500.0,0.00016849,2]
[351247772,1738476639243,-567.21,0.00016849,2]
[351247773,1738476639252,-1103.17,0.00016849,2]
[351247774,1738476639261,-521.99,0.00016849,2]
[351247775,1738476639270,-500.0,0.00016849,2]
[351247776,1738476639279,-500.0,0.00016849,2]
[351247777,1738476639287,-1800.04,0.00016849,2]
[351247778,1738476639297,-500.0,0.00016849,2]
[351247779,1738476639311,-500.0,0.00016849,2]
[351247780,1738476639320,-500.0,0.00016849,2]
[351247781,1738476639329,-1055.91,0.00016849,2]
[351247782,1738476639339,-500.0,0.00016849,2]
[351247783,1738476639347,-500.0,0.00016849,2]
[351247784,1738476639356,-500.0,0.00016849,2]
[351247785,1738476639366,-500.0,0.00016849,2]
[351247786,1738476639375,-1840.72,0.00016849,2]
[351247787,1738476639384,-500.0,0.00016849,2]
[351247788,1738476639393,-814.98,0.00016849,2]
[351247789,1738476639402,-763.73,0.00016849,2]
[351247790,1738476639411,-888.9,0.00016849,2]
[351247791,1738476639420,-500.0,0.00016849,2]
[351247792,1738476639429,-500.0,0.00016849,2]
[351247793,1738476639438,-500.0,0.00016849,2]
[351247794,1738476639447,-500.0,0.00016849,2]
[351247796,1738476639456,-2703.51,0.00016849,2]
[351247797,1738476639465,-500.0,0.00016849,2]
[351247798,1738476639475,-500.0,0.00016849,2]
[351247800,1738476639485,-9211.32,0.00016849,2]
[351247802,1738476639495,-574.0,0.00016849,2]
[351247804,1738476639504,-500.0,0.00016849,2]
[351247806,1738476639514,-500.0,0.00016849,2]
[351247808,1738476639524,-500.0,0.00016849,2]
[351247810,1738476639534,-1351.9,0.00016849,2]
[351247812,1738476639544,-151.0,0.000169,2]
[351247814,1738476639554,-179.25636195,0.0001695,2]
[351247816,1738476639563,-567.6,0.0001695,2]
[351247818,1738476639572,-500.0,0.0001695,2]
[351247820,1738476639581,-500.0,0.0001695,2]
[351247822,1738476639593,-500.0,0.0001695,2]
[351247824,1738476639602,-536.02,0.0001695,2]
[351247826,1738476639612,-500.0,0.0001695,2]
[351247828,1738476639622,-500.0,0.0001695,2]
[351247830,1738476639631,-500.0,0.0001695,2]
[351247832,1738476639643,-500.0,0.0001695,2]
[351247834,1738476639663,-500.0,0.00016985,2]
[351247836,1738476639673,-500.0,0.00016986,2]
[351247838,1738476639682,-500.0,0.00016986,2]
[351247840,1738476639691,-500.0,0.00016986,2]
[351247842,1738476639701,-505.77334746,0.00016986,2]
[351247844,1738476639710,-500.0,0.00016986,2]
[351247846,1738476639720,-500.0,0.00016986,2]
[351247848,1738476639729,-376.83116846,0.00016986,2]
[351247850,1738476639739,-500.0,0.00016986,2]
[351247852,1738476639748,-500.0,0.00016986,2]
[351247854,1738476639758,-500.0,0.00016986,2]
[351247856,1738476639768,-500.0,0.00016986,2]
[351247858,1738476639777,-500.0,0.00016986,2]
[351247860,1738476639787,-500.0,0.00016986,2]
[351247862,1738476639797,-500.0,0.00016986,2]
[351247864,1738476639807,-500.0,0.00016986,2]
[351247866,1738476639816,-500.0,0.00016986,2]
[351247868,1738476639826,-500.0,0.00016986,2]
[351247870,1738476639837,-567.21,0.00016986,2]
[351247871,1738476639846,-1103.17,0.00016986,2]
[351247873,1738476639855,-521.99,0.00016986,2]
[351247876,1738476639865,-500.0,0.00016986,2]
[351247878,1738476639874,-500.0,0.00016986,2]
[351247880,1738476639884,-1800.04,0.00016986,2]
[351247881,1738476639893,-500.0,0.00016986,2]
[351247883,1738476639903,-500.0,0.00016986,2]
[351247886,1738476639913,-500.0,0.00016986,2]
[351247887,1738476639924,-1055.91,0.00016986,2]
[351247890,1738476639935,-500.0,0.00016986,2]
[351247892,1738476639946,-500.0,0.00016986,2]
[351247894,1738476639956,-500.0,0.00016986,2]
[351247896,1738476639965,-304.25450017,0.00016986,2]
[351247898,1738476639975,-1840.72,0.00016986,2]
[351247900,1738476639985,-500.0,0.00016986,2]
[351247902,1738476639995,-814.98,0.00016986,2]
[351247904,1738476640005,-763.73,0.00016986,2]
[351247906,1738476640014,-888.9,0.00016986,2]
[351247907,1738476640024,-500.0,0.00016986,2]
[351247909,1738476640034,-500.0,0.00016986,2]
[351247910,1738476640043,-500.0,0.00016986,2]
[351247911,1738476640052,-500.0,0.00016986,2]
[351247912,1738476640062,-2703.51,0.00016986,2]
[351247913,1738476640071,-500.0,0.00016986,2]
[351247914,1738476640081,-500.0,0.00016986,2]
[351247915,1738476640098,-9211.32,0.00016986,2]
[351247916,1738476640108,-574.0,0.00016986,2]
[351247917,1738476640118,-500.0,0.00016986,2]
[351247918,1738476640128,-500.0,0.00016986,2]
[351247919,1738476640138,-500.0,0.00016986,2]
[351247920,1738476640147,-1351.9,0.00016986,2]
[351247921,1738476640157,-151.0,0.00017,2]
[351247922,1738476640169,-288.47710915,0.00017007,2]
[351247923,1738476640178,-500.0,0.00017087,2]
[351247924,1738476640188,-500.0,0.00017087,2]
[351247925,1738476640197,-500.0,0.00017087,2]
[351247926,1738476640206,-500.0,0.00017087,2]
[351247927,1738476640216,-500.0,0.00017087,2]
[351247928,1738476640225,-524.26692336,0.00017087,2]
[351247929,1738476640234,-151.0,0.000171,2]
[351247930,1738476640243,-500.0,0.00017122,2]
[351247931,1738476640252,-500.0,0.00017123,2]
[351247932,1738476640262,-500.0,0.00017123,2]
[351247933,1738476640271,-500.0,0.00017123,2]
[351247934,1738476640280,-500.0,0.00017123,2]
[351247935,1738476640290,-500.0,0.00017123,2]
[351247936,1738476640299,-504.9480489,0.00017123,2]
[351247937,1738476640309,-500.0,0.00017123,2]
[351247938,1738476640318,-500.0,0.00017123,2]
[351247939,1738476640328,-500.0,0.00017123,2]
[351247940,1738476640339,-500.0,0.00017123,2]
[351247941,1738476640349,-500.0,0.00017123,2]
[351247942,1738476640359,-500.0,0.00017123,2]
[351247943,1738476640368,-500.0,0.00017123,2]
[351247944,1738476640378,-500.0,0.00017123,2]
[351247945,1738476640387,-567.21,0.00017123,2]
[351247946,1738476640397,-1103.17,0.00017123,2]
[351247947,1738476640406,-521.99,0.00017123,2]
[351247948,1738476640416,-500.0,0.00017123,2]
[351247949,1738476640425,-500.0,0.00017123,2]
[351247950,1738476640435,-500.0,0.00017123,2]
[351247951,1738476640444,-1800.04,0.00017123,2]
[351247952,1738476640453,-500.0,0.00017123,2]
[351247954,1738476640463,-1055.91,0.00017123,2]
[351247956,1738476640472,-500.0,0.00017123,2]
[351247958,1738476640482,-500.0,0.00017123,2]
[351247960,1738476640491,-500.0,0.00017123,2]
[351247962,1738476640500,-1840.72,0.00017123,2]
[351247964,1738476640510,-500.0,0.00017123,2]
[351247966,1738476640519,-814.98,0.00017123,2]
[351247968,1738476640528,-763.73,0.00017123,2]
[351247970,1738476640538,-888.9,0.00017123,2]
[351247972,1738476640547,-500.0,0.00017123,2]
[351247974,1738476640557,-500.0,0.00017123,2]
[351247976,1738476640566,-500.0,0.00017123,2]
[351247978,1738476640575,-500.0,0.00017123,2]
[351247980,1738476640587,-2703.51,0.00017123,2]
[351247982,1738476640596,-500.0,0.00017123,2]
[351247985,1738476640605,-500.0,0.00017123,2]
[351247988,1738476640615,-9211.32,0.00017123,2]
[351247991,1738476640624,-574.0,0.00017123,2]
[351247993,1738476640634,-500.0,0.00017123,2]
[351247995,1738476640643,-500.0,0.00017123,2]
[351247997,1738476640652,-500.0,0.00017123,2]
[351247999,1738476640662,-1351.9,0.00017123,2]
[351248001,1738476640671,-500.0,0.00017224,2]
[351248003,1738476640680,-500.0,0.00017224,2]
[351248004,1738476640689,-500.0,0.00017224,2]
[351248006,1738476640699,-500.0,0.00017224,2]
[351248008,1738476640708,-288.47710915,0.00017231,2]
[351248010,1738476640717,-519.67081025,0.00017259,2]
[351248012,1738476640726,-500.0,0.0001726,2]
[351248014,1738476640736,-500.0,0.0001726,2]
[351248016,1738476640745,-500.0,0.0001726,2]
[351248018,1738476640754,-500.0,0.0001726,2]
[351248020,1738476640763,-500.0,0.0001726,2]
[351248022,1738476640773,-437.59,0.0001726,2]
[351248024,1738476640782,-500.0,0.0001726,2]
[351248026,1738476640792,-500.0,0.0001726,2]
[351248029,1738476640801,-554.79110466,0.0001726,2]
[351248030,1738476640811,-500.0,0.0001726,2]
[351248041,1738476640914,-500.0,0.0001726,2]
[351248044,1738476640924,-500.0,0.0001726,2]
[351248046,1738476640934,-567.21,0.0001726,2]
[351248048,1738476640943,-1103.17,0.0001726,2]
[351248050,1738476640954,-521.99,0.0001726,2]
[351248052,1738476640963,-500.0,0.0001726,2]
[351248054,1738476640972,-500.0,0.0001726,2]
[351248056,1738476640981,-500.0,0.0001726,2]
[351248058,1738476640990,-1800.04,0.0001726,2]
[351248060,1738476640999,-500.0,0.0001726,2]
[351248061,1738476641008,-1055.91,0.0001726,2]
[351248064,1738476641017,-500.0,0.0001726,2]
[351248066,1738476641027,-500.0,0.0001726,2]
[351248068,1738476641036,-500.0,0.0001726,2]
[351248069,1738476641046,-1840.72,0.0001726,2]
[351248072,1738476641056,-500.0,0.0001726,2]
[351248074,1738476641065,-814.98,0.0001726,2]
[351248076,1738476641074,-763.73,0.0001726,2]
[351248078,1738476641084,-888.9,0.0001726,2]
[351248080,1738476641096,-500.0,0.0001726,2]
[351248082,1738476641106,-500.0,0.0001726,2]
[351248084,1738476641115,-500.0,0.0001726,2]
[351248086,1738476641124,-500.0,0.0001726,2]
[351248088,1738476641135,-2703.51,0.0001726,2]
[351248090,1738476641144,-500.0,0.0001726,2]
[351248092,1738476641154,-500.0,0.0001726,2]
[351248093,1738476641164,-9211.32,0.0001726,2]
[351248095,1738476641174,-574.0,0.0001726,2]
[351248097,1738476641183,-360.9,0.0001726,2]
[351248099,1738476641192,-500.0,0.0001726,2]
[351248101,1738476641202,-1351.9,0.0001726,2]
[351248103,1738476641211,-271.71502537,0.000173,2]
[351248105,1738476641221,-151.0,0.000173,2]
[351248107,1738476641230,-500.0,0.00017333,2]
[351248109,1738476641239,-500.0,0.0001736,2]
[351248111,1738476641248,-500.0,0.00017361,2]
[351248113,1738476641258,-500.0,0.00017361,2]
[351248115,1738476641267,-500.0,0.00017361,2]
[351248117,1738476641277,-500.0,0.00017361,2]
[351248119,1738476641286,-151.0,0.00017361,2]
[351248121,1738476641295,-151.0,0.00017361,2]
[351248123,1738476641304,-151.0,0.00017361,2]
[351248125,1738476641313,-151.390268,0.00017361,2]
[351248127,1738476641322,-151.390268,0.00017361,2]
[351248129,1738476641331,-501.26260863,0.0001737,2]
[351248131,1738476641342,-500.0,0.0001737,2]
[351248133,1738476641351,-267.61621021,0.0001737,2]
[351248134,1738476641360,-286.33231952,0.0001737,2]
[351248136,1738476641369,-151.0,0.0001737,2]
[351248138,1738476641378,-738.492957,0.0001737,2]
[351248140,1738476641387,-738.492957,0.0001737,2]
[351248141,1738476641396,-151.0,0.0001737,2]
[351248143,1738476641405,-500.0,0.00017397,2]
[351248145,1738476641414,-365.3784492,0.00017397,2]
[351248147,1738476641423,-500.0,0.00017397,2]
[351248149,1738476641432,-240.53,0.00017397,2]
[351248151,1738476641441,-500.0,0.00017397,2]
[351248153,1738476641450,-500.0,0.00017397,2]
[351248155,1738476641459,-500.0,0.00017397,2]
[351248157,1738476641468,-500.0,0.00017397,2]
[351248159,1738476641478,-567.21,0.00017397,2]
[351248161,1738476641487,-1103.17,0.00017397,2]
[351248163,1738476641496,-521.99,0.00017397,2]
[351248166,1738476641506,-500.0,0.00017397,2]
[351248167,1738476641515,-500.0,0.00017397,2]
[351248169,1738476641524,-500.0,0.00017397,2]
[351248172,1738476641533,-1800.04,0.00017397,2]
[351248173,1738476641542,-500.0,0.00017397,2]
[351248175,1738476641551,-1055.91,0.00017397,2]
[351248177,1738476641561,-500.0,0.00017397,2]
[351248179,1738476641570,-500.0,0.00017397,2]
[351248181,1738476641579,-500.0,0.00017397,2]
[351248183,1738476641588,-1840.72,0.00017397,2]
[351248185,1738476641598,-500.0,0.00017397,2]
[351248187,1738476641607,-814.98,0.00017397,2]
[351248189,1738476641616,-763.73,0.00017397,2]
[351248191,1738476641625,-888.9,0.00017397,2]
[351248193,1738476641633,-500.0,0.00017397,2]
[351248195,1738476641643,-500.0,0.00017397,2]
[351248196,1738476641651,-500.0,0.00017397,2]
[351248197,1738476641661,-500.0,0.00017397,2]
[351248198,1738476641670,-2703.51,0.00017397,2]
[351248199,1738476641679,-500.0,0.00017397,2]
[351248200,1738476641688,-500.0,0.00017397,2]
[351248202,1738476641697,-9211.32,0.00017397,2]
[351248204,1738476641706,-574.0,0.00017397,2]
[351248206,1738476641715,-196.60851286,0.00017397,2]
[351248208,1738476641725,-1351.9,0.00017397,2]
[351248210,1738476641733,-151.0,0.000174,2]
[351248212,1738476641743,-288.47710915,0.00017454,2]
[351248214,1738476641752,-500.0,0.00017498,2]
[351248216,1738476641761,-500.0,0.00017498,2]
[351248218,1738476641772,-500.0,0.00017498,2]
[351248220,1738476641782,-500.0,0.00017498,2]
[351248222,1738476641791,-448.314987,0.00017498,2]
[351248224,1738476641800,-448.314987,0.00017498,2]
[351248226,1738476641809,-641.906858,0.00017498,2]
[351248228,1738476641818,-641.906858,0.00017498,2]
[351248230,1738476641827,-151.0,0.00017498,2]
[351248232,1738476641836,-572.289625,0.00017498,2]
[351248234,1738476641846,-572.289625,0.00017498,2]
[351248236,1738476641855,-396.0,0.00017531,2]
[351248238,1738476641864,-500.0,0.00017533,2]